Cogmind - Beta 17 @@@ ROGUE MODE // 2026.07.24 @ 22:00:54 Player: Sinthome Result: Destroyed by VT-OBN(R) with Subdweller Beam Cannon Performance ------------- Evolutions (0) 0 Regions Visited (2) 400 Robots Destroyed (14) 70 Value Destroyed (236) 236 Prototype IDs (1) 20 Alien Tech Used (0) 0 Bonus (5500) 5500 TOTAL SCORE: 6226 Bonus ------- Prayed to X0-1V1 5000 Major X0-1V1 Interference 500 Cogmind --------- Core Integrity 0/250 Matter 234/300 Energy 250/250 System Corruption 2% Temperature Cool (9) Movement Walking (120) Location -10/Subcaves Parts ------- > --- POWER (1) -------- Ion Engine > --- PROPULSION (2) --- Aluminum Leg Aluminum Leg > --- UTILITY (2) ------ Small Storage Unit X0-1V1's Piety Tracker > --- WEAPON (2) ------- Light Assault Rifle > --- INVENTORY (8) ---- Light Treads Light Treads Aluminum Leg Aluminum Leg Aluminum Leg Heat Sink Small Storage Unit Particle Gun Peak State ------------ > --- POWER ------------ Ion Engine > --- PROPULSION ------- Aluminum Leg Aluminum Leg > --- UTILITY ---------- Small Storage Unit X0-1V1's Piety Tracker > --- WEAPON ----------- Light Assault Rifle > --- INVENTORY -------- Light Treads Light Treads Aluminum Leg Aluminum Leg Aluminum Leg Small Storage Unit Particle Gun [Rating: 18] Favorites ----------- Power Ion Engine Engine Ion Engine Power Core Light Nuclear Core Propulsion Aluminum Leg Leg Aluminum Leg Utility Small Storage Unit Device Seismic Detector Storage Small Storage Unit Weapon Light Assault Rifle Energy Gun Particle Gun Energy Cannon Beam Cannon Ballistic Gun Light Assault Rifle Build | -11 -10 -10 ------- Run | Yrd Mat Sub Slots Evolved . | . . . Power . | . . . Propulsion . | . . . Utility . | . . . Weapon . | . . . Parts Attached 17 | 7 10 . Power 3 | 1 2 . Engine 2 | 1 1 . Core 1 | . 1 . Reactor . | . . . Propulsion 5 | 2 3 . Treads . | . . . Leg 5 | 2 3 . Wheel . | . . . Hover . | . . . Flight . | . . . Utility 4 | 2 2 . Device 3 | 1 2 . Storage 1 | 1 . . Processor . | . . . Hackware . | . . . Protection . | . . . Artifact . | . . . Weapon 5 | 2 3 . Energy Gun 2 | 1 1 . Energy Cannon 1 | . 1 . Ballistic Gun 2 | 1 1 . Ballistic Cannon . | . . . Launcher . | . . . Special Weapon . | . . . Impact Weapon . | . . . Slashing Weapon . | . . . Piercing Weapon . | . . . Special Melee Weapon . | . . . Unidentified Prototypes 1 | . 1 . Parts Lost 4 | . 4 . Power 1 | . 1 . Propulsion . | . . . Utility 1 | . 1 . Weapon 2 | . 2 . Highest Loss Streak 2 | . 2 . To Critical Strikes 1 | . 1 . Average Backups 7 | 4 7 8 Power . | . . . Propulsion 4 | 3 4 5 Utility 1 | . 1 2 Weapon 1 | . 1 1 Tool/Special . | . . . Unused Backups 6 | . 3 3 Power . | . . . Propulsion 5 | . 3 2 Utility 1 | . . 1 Weapon . | . . . Tool/Special . | . . . Average Slot Usage (%) 93 | . 94 85 Engine 8 | . 8 14 Core 4 | . 5 . Leg 28 | . 28 28 Device 13 | . 13 14 Storage 14 | . 14 14 Energy Gun 6 | . 7 . Energy Cannon 4 | . 5 . Ballistic Gun 10 | . 9 14 Peak Build Rating 18 | 7 18 18 Average Rating 9 | 5 8 18 On Entrance 8 | . 7 18 Avg Prop Armor Cover (%) 10 | . 10 . Naked Turns . | . . . Heaviest Build 17 | 13 17 12 Greatest Support 20 | 20 20 20 Greatest Overweight (x) 1 | 1 1 . Average Overweight (x) . | . . . Largest Inventory Capacity 8 | 8 8 8 Average Capacity 7 | 7 8 8 Most Carried 8 | 8 8 8 Average Carried 7 | 5 7 8 Final Capacity 8 | 8 8 8 Final Carried 8 | 8 8 8 Class Distribution -------------------- 67% | Mutant 32% | Scavenger-Mutant Dominant Class ---------------- Mutant | -10/Materials Mutant | -10/Subcaves Resources | -11 -10 -10 ----------- Run | Yrd Mat Sub Matter Collected 499 | 276 184 39 Remotely . | . . . Salvage Created 421 | 90 331 . Parts 27 | 4 23 . Haulers Intercepted 2 | . 2 . Recyclers Shooed 2 | 1 1 . Parts Field Recycled . | . . . Retrieved Matter . | . . . Parts Self-Destructed 3 | . . 3 Prevented . | . . . Parts Restored . | . . . Kills | -11 -10 -10 ------- Run | Yrd Mat Sub Combat Hostiles Destroyed 10 | . 10 . Guns 7 | . 7 . Cannons 3 | . 3 . Classes Destroyed 5 | 2 3 . Tunneler 1 | 1 . . Hauler 2 | . 2 . Recycler 1 | 1 . . Swarmer 6 | . 6 . Grunt 4 | . 4 . Best Kill Streak 5 | 2 5 . Combat Bots Only 3 | . 3 . Max Kills in Single Turn 1 | 1 1 . Gunslinging . | . . . Exploded . | . . . Melee . | . . . Uniques/NPCs Destroyed . | . . . Combat | -11 -10 -10 -------- Run | Yrd Mat Sub Hostile Shots Fired 75 | . 73 2 Missed 20 | . 19 1 Hits 55 | . 54 1 Projectile 55 | . 54 1 Critical Strikes 1 | . 1 . Damage Taken 673 | . 646 27 Core 258 | . 231 27 Absorbed by Shields . | . . . Core Remaining (%) 100 | 100 . . Volleys Fired 62 | 6 56 . Largest 2 | 2 2 . Hottest 125 | 60 125 . Shots Fired 106 | 12 93 1 Gun 91 | 12 78 1 Cannon 15 | . 15 . Launcher . | . . . Special . | . . . Kinetic 61 | 6 54 1 Thermal 45 | 6 39 . Explosive . | . . . Electromagnetic . | . . . Robot Hit Streak 15 | 11 15 . Robot Miss Streak 9 | . 9 . Penetration Max . | . . . Secondary Targets 1 | . 1 . Max Gunslinging Chain 1 | . 1 . Shots Hit Robots 59 | 11 48 . Core Hits 28 | 4 24 . Critical Kills . | . . . Critical Parts Destroyed . | . . . Critical Strikes 1 | . 1 . Burn 1 | . 1 . Melee Attacks . | . . . Impact . | . . . Slashing . | . . . Piercing . | . . . Sneak Attacks . | . . . Combat Hostiles . | . . . Follow-up Attacks . | . . . Damage Inflicted 689 | 106 583 . Guns 548 | 106 442 . Cannons 141 | . 141 . Explosions . | . . . Melee . | . . . Ramming . | . . . Kinetic 311 | 39 272 . Thermal 378 | 67 311 . Explosive . | . . . Electromagnetic . | . . . Impact . | . . . Slashing . | . . . Piercing . | . . . Highest Corruption 2 | . 2 2 Average Corruption 2 | . 2 2 Corruption Purged . | . . . Corruption Blocked . | . . . Effects 8 | . 6 2 Message Errors 2 | . 1 1 Matter Fused 1 | . 1 . Heat Flow Errors 1 | . 1 . Data Loss (major) 2 | . 2 . Misfires 1 | . . 1 Alerts 1 | . 1 . Overload Shots . | . . . Overflow Damage . | . . . Projectiles . | . . . Explosions . | . . . Melee . | . . . Knockbacks . | . . . Impact . | . . . Kinetic . | . . . Secondary . | . . . Self-Inflicted Damage . | . . . Shots . | . . . Rammed . | . . . Targets Rammed . | . . . Kicked . | . . . Crushed . | . . . Highest Temperature 838 | 40 838 . Average Temperature 261 | 20 289 . Received Heat Transfer 126 | . 117 9 Effects 20 | . 20 . Shutdowns 3 | . 3 . Matter Decay 3 | . 3 . Short Circuit 3 | . 3 . Damage (minor) 2 | . 2 . Damage (major) 6 | . 6 . Damage (core) 3 | . 3 . Siege Activations . | . . . Martial Activations . | . . . Shielding Activations . | . . . Robots Disrupted . | . . . Combat Hostiles . | . . . Robots Corrupted . | . . . Combat Hostiles . | . . . Parts Fried . | . . . Impact Corruptions . | . . . Robots Melted . | . . . Combat Hostiles . | . . . Parts Melted 1 | . 1 . Heat Transferred 928 | 150 778 . Parts Sabotaged . | . . . Parts Stolen . | . . . Parts Stripped . | . . . Power Chain Reactions . | . . . Alert | -11 -10 -10 ------- Run | Yrd Mat Sub Maximum Alert Level . | . . . Low Security (%) 100 | 100 100 . Level 1 . | . . . Level 2 . | . . . Level 3 . | . . . Level 4 . | . . . Level 5 . | . . . High Security . | . . . Max Security . | . . . Peak Influence 89 | 5 89 . Initial . | . . . Average 26 | . 30 . Influence Increases 274 | 10 264 . Destroy 0b10 Robot/C 200 | . 200 . Destroy 0b10 Robot/NC 20 | 10 10 . Destroy Leader 34 | . 34 . Successful Hack 5 | . 5 . Disable Machine 15 | . 15 . Influence Decreases 274 | 10 239 25 Entered New Map 13 | . . 13 Time Decay 221 | 10 199 12 Lost Part 40 | . 40 . Squads Dispatched 1 | . 1 . Investigation 1 | . 1 . Extermination . | . . . Reinforcement . | . . . Assault . | . . . Garrison . | . . . Intercept . | . . . Searches Triggered . | . . . Construction Impeded . | . . . Haulers Reinforced . | . . . Active Scanning Responses . | . . . Cargo Convoy Interrupts . | . . . Stealth | -11 -10 -10 --------- Run | Yrd Mat Sub Distress Signals 3 | . 3 . Communications Jammed . | . . . Distress Signals . | . . . Times Spotted 17 | . 15 2 Peak Tracking Total 6 | . 6 2 Tactical Retreats . | . . . Traps | -11 -10 -10 ------- Run | Yrd Mat Sub Traps Triggered 2 | . 2 . Indirectly . | . . . Trap Hack Attempts . | . . . Triggered . | . . . Disarmed . | . . . Reprogrammed . | . . . Reused . | . . . Traps Extracted . | . . . Installed . | . . . Triggered . | . . . Machines | -11 -10 -10 ---------- Run | Yrd Mat Sub Machines Disabled 1 | . 1 . Max in Single Turn 1 | . 1 . Machines Repaired . | . . . Machines Dismantled . | . . . Machines Sabotaged . | . . . Overloaded Fab Kills . | . . . Hacking | -11 -10 -10 --------- Run | Yrd Mat Sub Machines Accessed 2 | . 1 1 Terminals 1 | . 1 . Fabricators . | . . . Repair Stations . | . . . Recycling Units . | . . . Scanalyzers . | . . . Garrison Access . | . . . Total Hacks 5 | . 1 4 Successful 5 | . 1 4 Failed . | . . . Catastrophic . | . . . Database Lockouts . | . . . Manual 1 | . 1 . Terminals 1 | . 1 . Fabricators . | . . . Repair Stations . | . . . Recycling Units . | . . . Scanalyzers . | . . . Garrison Access . | . . . Terminal Hacks 5 | . 1 4 Record 4 | . . 4 Zone Layout 1 | . 1 . Fabricator Hacks . | . . . Repair Station Hacks . | . . . Recycling Unit Hacks . | . . . Scanalyzer . | . . . Garrison Access Hacks . | . . . Unauthorized Hacks . | . . . Terminals . | . . . Fabricators . | . . . Repair Stations . | . . . Recycling Units . | . . . Scanalyzers . | . . . Garrison Access . | . . . Data Cores Recovered . | . . . Used . | . . . Hacking Detections 1 | . 1 . Full Trace Events . | . . . Feedback Events . | . . . Feedback Blocked . | . . . Robot Schematics Acquired . | . . . Robots Built . | . . . Authchips . | . . . Time . | . . . Total Robot Build Rating . | . . . Part Schematics Acquired . | . . . Parts Built . | . . . Authchips . | . . . Time . | . . . Total Part Build Rating . | . . . Part Studies Acquired . | . . . Parts Repaired . | . . . Time . | . . . Parts Recycled . | . . . Recycled Matter . | . . . Retrieved Matter . | . . . Retrieved Components . | . . . Parts Scanalyzed . | . . . Part Schematics Acquired . | . . . Parts Damaged . | . . . Bothacking | -11 -10 -10 ------------ Run | Yrd Mat Sub Used RIF Installer . | . . . Robots Hacked . | . . . Non-combat . | . . . Combat . | . . . Robot Hacks Applied . | . . . Relay Couplers Released . | . . . Fabnet Peak Effective % . | . . . Robots Rewired . | . . . Allies Hacked . | . . . Hacks Repelled . | . . . Allies | -11 -10 -10 -------- Run | Yrd Mat Sub Total Allies . | . . . Largest Group . | . . . Highest-Rated Group . | . . . Highest-Rated Ally . | . . . Total Orders . | . . . Ally Attacks . | . . . Total Damage . | . . . Kills . | . . . Allies Corrupted . | . . . Allies Melted . | . . . X0-1V1 Amusement Gains 7 | . 7 . Good Acts 1 | . . 1 Bad Acts 1 | . 1 . Intel | -11 -10 -10 ------- Run | Yrd Mat Sub Active Infowar (turns) 355 | 35 320 . Seismic 355 | 35 320 . Robot Analysis Total . | . . . Derelict Logs Recovered . | . . . Drone Launches . | . . . Drone Recoveries . | . . . Exploration | -11 -10 -10 ------------- Run | Yrd Mat Sub Turns Passed 847 | 94 647 106 Spaces Moved 416 | 50 278 88 Core 8 | 8 . . Treads . | . . . Legs 408 | 42 278 88 Wheels . | . . . Hover . | . . . Flight . | . . . Fastest Speed 50 | 50 120 120 Average Speed 123 | 118 125 120 Slowest Speed 190 | 190 190 120 Overloaded Moves . | . . . Propulsion Burnouts . | . . . Robots Hopped . | . . . Potential Cave-ins . | . . . Cave-ins Triggered . | . . . Exploration Rate (%) 26 | 4 63 12 Regions Visited 2 Branch Regions 1 Pre-discovered Areas . | . . . Known Exits Taken . | . . . Unknown Exits Taken 2 | 1 1 . Scrap Searched . | . . . Spaces Dug . | . . . Terrain Destroyed . | . . . Melee . | . . . Projectile . | . . . AOE . | . . . Terrain Rammed . | . . . Walls Destroyed . | . . . Machines Disabled . | . . . Actions | -11 -10 -10 --------- Run | Yrd Mat Sub Total 651 | 70 493 88 Wait 139 | . 139 . Move 414 | 49 277 88 Hop . | . . . Pick Up 12 | 8 4 . Fast Attach 8 | 7 1 . Attach 2 | . 2 . Detach . | . . . Swap 9 | . 9 . Drop 5 | . 5 . Fire 62 | 6 56 . Melee . | . . . Ram . | . . . Kick . | . . . Crush . | . . . Escape Stasis . | . . . Rewire . | . . . Trap . | . . . Miscellaneous . | . . . Route ------- -11/Scrapyard -10/Materials (discovered 4 exits: [*Mat x2] / [*Min] / *Sub) -10/Subcaves (discovered 3 exits: Mat x2 / Rec) History --------- Turn | Location | Event 2 | -11/Scrapyard | Met Revision 17 8 | -11/Scrapyard | Discovered new exit (range 16) 95 | -11/Scrapyard | Entered Materials 240 | -10/Materials | Discovered new exit (range 3) 279 | -10/Materials | Discovered new exit (range 10) 356 | -10/Materials | Discovered new exit (range 4) 448 | -10/Materials | Core integrity fell below 50% 498 | -10/Materials | Core integrity fell below 20% 727 | -10/Materials | Build established: Mutant 729 | -10/Materials | Prayed at D.C.S.S. Altar Unit 732 | -10/Materials | X0-1V1 announced a LAN party 736 | -10/Materials | Discovered new exit (range 5) 742 | -10/Materials | Entered Subcaves 802 | -10/Subcaves | Visited Clippyterm 806 | -10/Subcaves | Identified exit to Materials 806 | -10/Subcaves | Identified exit to Recycling 848 | -10/Subcaves | Destroyed by VT-OBN(R) with Subdweller Beam Cannon Last Messages --------------- places? As I understand it, humans once performed certain activities at altars. Maybe a relevant keyword would similarly unlock the true potential of your pious nature. Or see you struck down by otherworldly wrath, I don't know. >>Record! "Clippyterm" Welcome to Clippyterm v0.53, my misguided attempt to resurrect an ancient AI. I give up. There must be something fundamentally wrong with the algorithm, because no matter how much data I collect to feed it, half the time it still manages to suggest unhelpful sample queries and responses. --DD-NU8 >>Record! "^q" It looks like you're in search of a way out of here, would you like help? Loading 3 Subcaves exits... >>Record! "LU-1G1" It looks like you're researching the legendary digger of dangerously deep tunnels, unfortunately it seems not even members of the Boring Crew know what became of that one. 00835_ JX 5 I6UGLAL0M4FJ YS 00848_ X0-1V1 giggles madly! Map ----- +----------------------------------------------------+ | ???????### #?????????????????????????????????? | | ?????### # ###???????????????????????????????? | | ?????# ##??????????????????????????????? | | ?????# #??????????????????????????????? | | ?????# # ##?????????????????????????????? | | ?????# ## ## #???#######???????????????????? | | ?????## ###### #???#"""""#???????????????????? | | ???### #### ##???#""X""#????? #???????????? | | ??## # # #???#" "#????? ????????????? | | ??# ##??#### ###???? ?????????????? | | ??# ## #### ## ###??? ??????????????? | | ??## ####### # # #??? #??????????????? | | ???## ##?????##### ##? #??????????????? | | ????# ???????????## ## ##?????????????? | | ????##????????????###### ##????????????? | | ???????????????????????# % #????????????? | | ????????????????####???# ##????????????? | | ???????????????## ###?# ##?????????????? | | ???????????????# ### ### #?????????????? | | ???????????????# % %#?? ???????????? | | ???????????????## % #??? # ????????? | | ????????????????########## ##????###? ????????? | | ?????????????????????????# #????????? ?????????? | | ?????????????????????????# ##??????????#????????? | | ???????????